{"text_format":"3","workbook":"xlsx","n_sheets":2,"sheets":["Fogyókúranapló","számítások"],"not_rendered":{"charts":1,"defined_names":7},"read":"whole","date_system":"1900"}

{"sheet":"Fogyókúranapló","index":0,"n_rows":129,"n_cols":11,"rows_kept":129,"merged":[[0,5,0,9],[1,6,3,9]]}
[null,"CÉLSÚLY","DIAGRAMNÉZET",null,null," BARBARA FOGYÁSA"]
[{"$nulls":6},"NAPLÓ"]
[null,{"v":172,"d":"172.0"},"HETI",{"$nulls":7}," "]
[]
[]
[{"$nulls":10}," "]
{"$rows_empty":18}
[null,"DÁTUM","SÚLY"]
[null,"2012-11-30",{"v":176,"d":"176.0"}]
[null,"2012-12-07",{"v":176,"d":"176.0"}]
[null,"2012-12-14",177.6]
[null,"2012-12-21",176.5]
[null,"2012-12-28",176.1]
[null,"2013-01-04",{"v":174,"d":"174.0"}]
[null,"2013-01-11",{"v":173,"d":"173.0"}]
[null,"2013-01-18",{"v":172,"d":"172.0"}]
[null,"2013-01-25",{"v":172,"d":"172.0"}]
[null,"2013-02-01",{"v":173,"d":"173.0"}]
[null,"2013-02-08",{"v":174,"d":"174.0"}]
[null,"2013-02-15",{"v":175,"d":"175.0"}]
[null,"2013-02-22"]
[null,"2013-03-01"]
[null,"2013-03-08"]
[null,"2013-03-15"]
[null,"2013-03-22"]
[null,"2013-03-29"]
[null,"2013-04-05"]
[null,"2013-04-12"]
[null,"2013-04-19"]
[null,"2013-04-26"]
[null,"2013-05-03"]
[null,"2013-05-10"]
[null,"2013-05-17"]
[null,"2013-05-24"]
[null,"2013-05-31"]
[null,"2013-06-07"]
[null,"2013-06-14"]
[null,"2013-06-21"]
[null,"2013-06-28"]
[null,"2013-07-05"]
[null,"2013-07-12"]
[null,"2013-07-19"]
[null,"2013-07-26"]
[null,"2013-08-02"]
[null,"2013-08-09"]
[null,"2013-08-16"]
[null,"2013-08-23"]
[null,"2013-08-30"]
[null,"2013-09-06"]
[null,"2013-09-13"]
[null,"2013-09-20"]
[null,"2013-09-27"]
[null,"2013-10-04"]
[null,"2013-10-11"]
[null,"2013-10-18"]
[null,"2013-10-25"]
[null,"2013-11-01"]
[null,"2013-11-08"]
[null,"2013-11-15"]
[null,"2013-11-22"]
[null,"2013-11-29"]
[null,"2013-12-06"]
[null,"2013-12-13"]
[null,"2013-12-20"]
[null,"2013-12-27"]
[null,"2014-01-03"]
[null,"2014-01-10"]
[null,"2014-01-17"]
[null,"2014-01-24"]
[null,"2014-01-31"]
[null,"2014-02-07"]
[null,"2014-02-14"]
[null,"2014-02-21"]
[null,"2014-02-28"]
[null,"2014-03-07"]
[null,"2014-03-14"]
[null,"2014-03-21"]
[null,"2014-03-28"]
[null,"2014-04-04"]
[null,"2014-04-11"]
[null,"2014-04-18"]
[null,"2014-04-25"]
[null,"2014-05-02"]
[null,"2014-05-09"]
[null,"2014-05-16"]
[null,"2014-05-23"]
[null,"2014-05-30"]
[null,"2014-06-06"]
[null,"2014-06-13"]
[null,"2014-06-20"]
[null,"2014-06-27"]
[null,"2014-07-04"]
[null,"2014-07-11"]
[null,"2014-07-18"]
[null,"2014-07-25"]
[null,"2014-08-01"]
[null,"2014-08-08"]
[null,"2014-08-15"]
[null,"2014-08-22"]
[null,"2014-08-29"]
[null,"2014-09-05"]
[null,"2014-09-12"]
[null,"2014-09-19"]
[null,"2014-09-26"]
[null,"2014-10-03"]
[null,"2014-10-10"]
[null,"2014-10-17"]
[null,"2014-10-24"]
[null,"2014-10-31"]
[null,"2014-11-07"]
[null,"2014-11-14"]
[null,"2014-11-21"]

{"sheet":"számítások","index":1,"n_rows":108,"n_cols":17,"rows_kept":108,"hidden":true}
["***  Rejtve maradó lap ***"]
[]
[{"$f":"COUNTIF(A5:A108,FALSE)","v":13},"Időszakok","Értékek",{"$nulls":3},{"$f":"COUNTIF(H5:H28,\">\"&0)","v":4},"Időszakok",null,"Értékek"]
[null,"Hét",null,null,true,null,null,"Hónap","Hónap vége"]
[{"$f":"IF((Fogyókúranapló!C26=0)*(Fogyókúranapló!C25=0),TRUE)","v":false},{"$f":"IF(A5,0,IF(Fogyókúranapló!B26=0,Fogyókúranapló!B25+5,Fogyókúranapló!B26))","v":"2012-11-30"},{"$f":"Fogyókúranapló!C26","v":176},{"$f":"MIN(DiagramIdőszakok)","v":"2012-11-30"},{"$f":"IF($E$4,Célsúly,NA())","v":172},null,null,{"$f":"DATE(YEAR(B5),MONTH(B5),1)","v":"2012-11-01"},{"$f":"EOMONTH(H5,0)","v":"2012-11-30"},{"$f":"IFERROR(AVERAGEIFS(SúlyTáblázat[SÚLY],SúlyTáblázat[DÁTUM],\">=\"&H5,SúlyTáblázat[DÁTUM],\"<=\"&I5),NA())","v":176}]
[{"$f":"IF((Fogyókúranapló!C27=0)*(Fogyókúranapló!C26=0),TRUE)","v":false},{"$f":"IF(A6,0,IF(Fogyókúranapló!B27=0,Fogyókúranapló!B26+5,Fogyókúranapló!B27))","v":"2012-12-07"},{"$f":"Fogyókúranapló!C27","v":176},{"$f":"MAX(DiagramIdőszakok)","v":"2013-02-22"},172,null,null,{"$f":"IF(I5+1>MAX($B:$B),NA(),I5+1)","v":"2012-12-01"},"2012-12-31",{"$f":"IFERROR(AVERAGEIFS(SúlyTáblázat[SÚLY],SúlyTáblázat[DÁTUM],\">=\"&H6,SúlyTáblázat[DÁTUM],\"<=\"&I6),NA())","v":176.55}]
[{"$f":"IF((Fogyókúranapló!C28=0)*(Fogyókúranapló!C27=0),TRUE)","v":false},{"$f":"IF(A7,0,IF(Fogyókúranapló!B28=0,Fogyókúranapló!B27+5,Fogyókúranapló!B28))","v":"2012-12-14"},{"$f":"Fogyókúranapló!C28","v":177.6},{"$nulls":4},{"$f":"IF(I6+1>MAX($B:$B),NA(),I6+1)","v":"2013-01-01"},"2013-01-31",{"$f":"IFERROR(AVERAGEIFS(SúlyTáblázat[SÚLY],SúlyTáblázat[DÁTUM],\">=\"&H7,SúlyTáblázat[DÁTUM],\"<=\"&I7),NA())","v":172.75}]
[{"$f":"IF((Fogyókúranapló!C29=0)*(Fogyókúranapló!C28=0),TRUE)","v":false},{"$f":"IF(A8,0,IF(Fogyókúranapló!B29=0,Fogyókúranapló!B28+5,Fogyókúranapló!B29))","v":"2012-12-21"},{"$f":"Fogyókúranapló!C29","v":176.5},{"$nulls":4},"2013-02-01","2013-02-28",{"$f":"IFERROR(AVERAGEIFS(SúlyTáblázat[SÚLY],SúlyTáblázat[DÁTUM],\">=\"&H8,SúlyTáblázat[DÁTUM],\"<=\"&I8),NA())","v":174}]
[{"$f":"IF((Fogyókúranapló!C30=0)*(Fogyókúranapló!C29=0),TRUE)","v":false},{"$f":"IF(A9,0,IF(Fogyókúranapló!B30=0,Fogyókúranapló!B29+5,Fogyókúranapló!B30))","v":"2012-12-28"},{"$f":"Fogyókúranapló!C30","v":176.1},{"$nulls":4},{"$error":"#N/A"},{"$error":"#N/A"},{"$f":"IFERROR(AVERAGEIFS(SúlyTáblázat[SÚLY],SúlyTáblázat[DÁTUM],\">=\"&H9,SúlyTáblázat[DÁTUM],\"<=\"&I9),NA())","v":{"$error":"#N/A"}}]
[{"$f":"IF((Fogyókúranapló!C31=0)*(Fogyókúranapló!C30=0),TRUE)","v":false},{"$f":"IF(A10,0,IF(Fogyókúranapló!B31=0,Fogyókúranapló!B30+5,Fogyókúranapló!B31))","v":"2013-01-04"},{"$f":"Fogyókúranapló!C31","v":174},{"$nulls":4},{"$error":"#N/A"},{"$error":"#N/A"},{"$f":"IFERROR(AVERAGEIFS(SúlyTáblázat[SÚLY],SúlyTáblázat[DÁTUM],\">=\"&H10,SúlyTáblázat[DÁTUM],\"<=\"&I10),NA())","v":{"$error":"#N/A"}}]
[{"$f":"IF((Fogyókúranapló!C32=0)*(Fogyókúranapló!C31=0),TRUE)","v":false},{"$f":"IF(A11,0,IF(Fogyókúranapló!B32=0,Fogyókúranapló!B31+5,Fogyókúranapló!B32))","v":"2013-01-11"},{"$f":"Fogyókúranapló!C32","v":173},{"$nulls":4},{"$error":"#N/A"},{"$error":"#N/A"},{"$f":"IFERROR(AVERAGEIFS(SúlyTáblázat[SÚLY],SúlyTáblázat[DÁTUM],\">=\"&H11,SúlyTáblázat[DÁTUM],\"<=\"&I11),NA())","v":{"$error":"#N/A"}},{"$nulls":6},{"$f":"MAX($B:$B)","v":"2013-02-22"}]
[{"$f":"IF((Fogyókúranapló!C33=0)*(Fogyókúranapló!C32=0),TRUE)","v":false},{"$f":"IF(A12,0,IF(Fogyókúranapló!B33=0,Fogyókúranapló!B32+5,Fogyókúranapló!B33))","v":"2013-01-18"},{"$f":"Fogyókúranapló!C33","v":172},{"$nulls":4},{"$error":"#N/A"},{"$error":"#N/A"},{"$f":"IFERROR(AVERAGEIFS(SúlyTáblázat[SÚLY],SúlyTáblázat[DÁTUM],\">=\"&H12,SúlyTáblázat[DÁTUM],\"<=\"&I12),NA())","v":{"$error":"#N/A"}}]
[{"$f":"IF((Fogyókúranapló!C34=0)*(Fogyókúranapló!C33=0),TRUE)","v":false},{"$f":"IF(A13,0,IF(Fogyókúranapló!B34=0,Fogyókúranapló!B33+5,Fogyókúranapló!B34))","v":"2013-01-25"},{"$f":"Fogyókúranapló!C34","v":172},{"$nulls":4},{"$error":"#N/A"},{"$error":"#N/A"},{"$f":"IFERROR(AVERAGEIFS(SúlyTáblázat[SÚLY],SúlyTáblázat[DÁTUM],\">=\"&H13,SúlyTáblázat[DÁTUM],\"<=\"&I13),NA())","v":{"$error":"#N/A"}}]
[{"$f":"IF((Fogyókúranapló!C35=0)*(Fogyókúranapló!C34=0),TRUE)","v":false},{"$f":"IF(A14,0,IF(Fogyókúranapló!B35=0,Fogyókúranapló!B34+5,Fogyókúranapló!B35))","v":"2013-02-01"},{"$f":"Fogyókúranapló!C35","v":173},{"$nulls":4},{"$error":"#N/A"},{"$error":"#N/A"},{"$f":"IFERROR(AVERAGEIFS(SúlyTáblázat[SÚLY],SúlyTáblázat[DÁTUM],\">=\"&H14,SúlyTáblázat[DÁTUM],\"<=\"&I14),NA())","v":{"$error":"#N/A"}}]
[{"$f":"IF((Fogyókúranapló!C36=0)*(Fogyókúranapló!C35=0),TRUE)","v":false},{"$f":"IF(A15,0,IF(Fogyókúranapló!B36=0,Fogyókúranapló!B35+5,Fogyókúranapló!B36))","v":"2013-02-08"},{"$f":"Fogyókúranapló!C36","v":174},{"$nulls":4},{"$error":"#N/A"},{"$error":"#N/A"},{"$f":"IFERROR(AVERAGEIFS(SúlyTáblázat[SÚLY],SúlyTáblázat[DÁTUM],\">=\"&H15,SúlyTáblázat[DÁTUM],\"<=\"&I15),NA())","v":{"$error":"#N/A"}}]
[{"$f":"IF((Fogyókúranapló!C37=0)*(Fogyókúranapló!C36=0),TRUE)","v":false},{"$f":"IF(A16,0,IF(Fogyókúranapló!B37=0,Fogyókúranapló!B36+5,Fogyókúranapló!B37))","v":"2013-02-15"},{"$f":"Fogyókúranapló!C37","v":175},{"$nulls":4},{"$error":"#N/A"},{"$error":"#N/A"},{"$f":"IFERROR(AVERAGEIFS(SúlyTáblázat[SÚLY],SúlyTáblázat[DÁTUM],\">=\"&H16,SúlyTáblázat[DÁTUM],\"<=\"&I16),NA())","v":{"$error":"#N/A"}}]
[{"$f":"IF((Fogyókúranapló!C38=0)*(Fogyókúranapló!C37=0),TRUE)","v":false},{"$f":"IF(A17,0,IF(Fogyókúranapló!B38=0,Fogyókúranapló!B37+5,Fogyókúranapló!B38))","v":"2013-02-22"},{"$f":"Fogyókúranapló!C38","v":0},{"$nulls":4},{"$error":"#N/A"},{"$error":"#N/A"},{"$f":"IFERROR(AVERAGEIFS(SúlyTáblázat[SÚLY],SúlyTáblázat[DÁTUM],\">=\"&H17,SúlyTáblázat[DÁTUM],\"<=\"&I17),NA())","v":{"$error":"#N/A"}}]
[{"$f":"IF((Fogyókúranapló!C39=0)*(Fogyókúranapló!C38=0),TRUE)","v":true},{"$f":"IF(A18,0,IF(Fogyókúranapló!B39=0,Fogyókúranapló!B38+5,Fogyókúranapló!B39))","v":"00:00:00"},{"$f":"Fogyókúranapló!C39","v":0},{"$nulls":4},{"$error":"#N/A"},{"$error":"#N/A"},{"$f":"IFERROR(AVERAGEIFS(SúlyTáblázat[SÚLY],SúlyTáblázat[DÁTUM],\">=\"&H18,SúlyTáblázat[DÁTUM],\"<=\"&I18),NA())","v":{"$error":"#N/A"}}]
[{"$f":"IF((Fogyókúranapló!C40=0)*(Fogyókúranapló!C39=0),TRUE)","v":true},{"$f":"IF(A19,0,IF(Fogyókúranapló!B40=0,Fogyókúranapló!B39+5,Fogyókúranapló!B40))","v":"00:00:00"},{"$f":"Fogyókúranapló!C40","v":0},{"$nulls":4},{"$error":"#N/A"},{"$error":"#N/A"},{"$f":"IFERROR(AVERAGEIFS(SúlyTáblázat[SÚLY],SúlyTáblázat[DÁTUM],\">=\"&H19,SúlyTáblázat[DÁTUM],\"<=\"&I19),NA())","v":{"$error":"#N/A"}}]
[{"$f":"IF((Fogyókúranapló!C41=0)*(Fogyókúranapló!C40=0),TRUE)","v":true},{"$f":"IF(A20,0,IF(Fogyókúranapló!B41=0,Fogyókúranapló!B40+5,Fogyókúranapló!B41))","v":"00:00:00"},{"$f":"Fogyókúranapló!C41","v":0},{"$nulls":4},{"$error":"#N/A"},{"$error":"#N/A"},{"$f":"IFERROR(AVERAGEIFS(SúlyTáblázat[SÚLY],SúlyTáblázat[DÁTUM],\">=\"&H20,SúlyTáblázat[DÁTUM],\"<=\"&I20),NA())","v":{"$error":"#N/A"}}]
[{"$f":"IF((Fogyókúranapló!C42=0)*(Fogyókúranapló!C41=0),TRUE)","v":true},{"$f":"IF(A21,0,IF(Fogyókúranapló!B42=0,Fogyókúranapló!B41+5,Fogyókúranapló!B42))","v":"00:00:00"},{"$f":"Fogyókúranapló!C42","v":0},{"$nulls":4},{"$error":"#N/A"},{"$error":"#N/A"},{"$f":"IFERROR(AVERAGEIFS(SúlyTáblázat[SÚLY],SúlyTáblázat[DÁTUM],\">=\"&H21,SúlyTáblázat[DÁTUM],\"<=\"&I21),NA())","v":{"$error":"#N/A"}}]
[{"$f":"IF((Fogyókúranapló!C43=0)*(Fogyókúranapló!C42=0),TRUE)","v":true},{"$f":"IF(A22,0,IF(Fogyókúranapló!B43=0,Fogyókúranapló!B42+5,Fogyókúranapló!B43))","v":"00:00:00"},{"$f":"Fogyókúranapló!C43","v":0},{"$nulls":4},{"$error":"#N/A"},{"$error":"#N/A"},{"$f":"IFERROR(AVERAGEIFS(SúlyTáblázat[SÚLY],SúlyTáblázat[DÁTUM],\">=\"&H22,SúlyTáblázat[DÁTUM],\"<=\"&I22),NA())","v":{"$error":"#N/A"}}]
[{"$f":"IF((Fogyókúranapló!C44=0)*(Fogyókúranapló!C43=0),TRUE)","v":true},{"$f":"IF(A23,0,IF(Fogyókúranapló!B44=0,Fogyókúranapló!B43+5,Fogyókúranapló!B44))","v":"00:00:00"},{"$f":"Fogyókúranapló!C44","v":0},{"$nulls":4},{"$error":"#N/A"},{"$error":"#N/A"},{"$f":"IFERROR(AVERAGEIFS(SúlyTáblázat[SÚLY],SúlyTáblázat[DÁTUM],\">=\"&H23,SúlyTáblázat[DÁTUM],\"<=\"&I23),NA())","v":{"$error":"#N/A"}}]
[{"$f":"IF((Fogyókúranapló!C45=0)*(Fogyókúranapló!C44=0),TRUE)","v":true},{"$f":"IF(A24,0,IF(Fogyókúranapló!B45=0,Fogyókúranapló!B44+5,Fogyókúranapló!B45))","v":"00:00:00"},{"$f":"Fogyókúranapló!C45","v":0},{"$nulls":4},{"$error":"#N/A"},{"$error":"#N/A"},{"$f":"IFERROR(AVERAGEIFS(SúlyTáblázat[SÚLY],SúlyTáblázat[DÁTUM],\">=\"&H24,SúlyTáblázat[DÁTUM],\"<=\"&I24),NA())","v":{"$error":"#N/A"}}]
[{"$f":"IF((Fogyókúranapló!C46=0)*(Fogyókúranapló!C45=0),TRUE)","v":true},{"$f":"IF(A25,0,IF(Fogyókúranapló!B46=0,Fogyókúranapló!B45+5,Fogyókúranapló!B46))","v":"00:00:00"},{"$f":"Fogyókúranapló!C46","v":0},{"$nulls":4},{"$error":"#N/A"},{"$error":"#N/A"},{"$f":"IFERROR(AVERAGEIFS(SúlyTáblázat[SÚLY],SúlyTáblázat[DÁTUM],\">=\"&H25,SúlyTáblázat[DÁTUM],\"<=\"&I25),NA())","v":{"$error":"#N/A"}}]
[{"$f":"IF((Fogyókúranapló!C47=0)*(Fogyókúranapló!C46=0),TRUE)","v":true},{"$f":"IF(A26,0,IF(Fogyókúranapló!B47=0,Fogyókúranapló!B46+5,Fogyókúranapló!B47))","v":"00:00:00"},{"$f":"Fogyókúranapló!C47","v":0},{"$nulls":4},{"$error":"#N/A"},{"$error":"#N/A"},{"$f":"IFERROR(AVERAGEIFS(SúlyTáblázat[SÚLY],SúlyTáblázat[DÁTUM],\">=\"&H26,SúlyTáblázat[DÁTUM],\"<=\"&I26),NA())","v":{"$error":"#N/A"}}]
[{"$f":"IF((Fogyókúranapló!C48=0)*(Fogyókúranapló!C47=0),TRUE)","v":true},{"$f":"IF(A27,0,IF(Fogyókúranapló!B48=0,Fogyókúranapló!B47+5,Fogyókúranapló!B48))","v":"00:00:00"},{"$f":"Fogyókúranapló!C48","v":0},{"$nulls":4},{"$error":"#N/A"},{"$error":"#N/A"},{"$f":"IFERROR(AVERAGEIFS(SúlyTáblázat[SÚLY],SúlyTáblázat[DÁTUM],\">=\"&H27,SúlyTáblázat[DÁTUM],\"<=\"&I27),NA())","v":{"$error":"#N/A"}}]
[{"$f":"IF((Fogyókúranapló!C49=0)*(Fogyókúranapló!C48=0),TRUE)","v":true},{"$f":"IF(A28,0,IF(Fogyókúranapló!B49=0,Fogyókúranapló!B48+5,Fogyókúranapló!B49))","v":"00:00:00"},{"$f":"Fogyókúranapló!C49","v":0},{"$nulls":4},{"$error":"#N/A"},{"$error":"#N/A"},{"$f":"IFERROR(AVERAGEIFS(SúlyTáblázat[SÚLY],SúlyTáblázat[DÁTUM],\">=\"&H28,SúlyTáblázat[DÁTUM],\"<=\"&I28),NA())","v":{"$error":"#N/A"}}]
[{"$f":"IF((Fogyókúranapló!C50=0)*(Fogyókúranapló!C49=0),TRUE)","v":true},{"$f":"IF(A29,0,IF(Fogyókúranapló!B50=0,Fogyókúranapló!B49+5,Fogyókúranapló!B50))","v":"00:00:00"},{"$f":"Fogyókúranapló!C50","v":0}]
[{"$f":"IF((Fogyókúranapló!C51=0)*(Fogyókúranapló!C50=0),TRUE)","v":true},{"$f":"IF(A30,0,IF(Fogyókúranapló!B51=0,Fogyókúranapló!B50+5,Fogyókúranapló!B51))","v":"00:00:00"},{"$f":"Fogyókúranapló!C51","v":0}]
[{"$f":"IF((Fogyókúranapló!C52=0)*(Fogyókúranapló!C51=0),TRUE)","v":true},{"$f":"IF(A31,0,IF(Fogyókúranapló!B52=0,Fogyókúranapló!B51+5,Fogyókúranapló!B52))","v":"00:00:00"},{"$f":"Fogyókúranapló!C52","v":0}]
[{"$f":"IF((Fogyókúranapló!C53=0)*(Fogyókúranapló!C52=0),TRUE)","v":true},{"$f":"IF(A32,0,IF(Fogyókúranapló!B53=0,Fogyókúranapló!B52+5,Fogyókúranapló!B53))","v":"00:00:00"},{"$f":"Fogyókúranapló!C53","v":0}]
[{"$f":"IF((Fogyókúranapló!C54=0)*(Fogyókúranapló!C53=0),TRUE)","v":true},{"$f":"IF(A33,0,IF(Fogyókúranapló!B54=0,Fogyókúranapló!B53+5,Fogyókúranapló!B54))","v":"00:00:00"},{"$f":"Fogyókúranapló!C54","v":0}]
[{"$f":"IF((Fogyókúranapló!C55=0)*(Fogyókúranapló!C54=0),TRUE)","v":true},{"$f":"IF(A34,0,IF(Fogyókúranapló!B55=0,Fogyókúranapló!B54+5,Fogyókúranapló!B55))","v":"00:00:00"},{"$f":"Fogyókúranapló!C55","v":0}]
[{"$f":"IF((Fogyókúranapló!C56=0)*(Fogyókúranapló!C55=0),TRUE)","v":true},{"$f":"IF(A35,0,IF(Fogyókúranapló!B56=0,Fogyókúranapló!B55+5,Fogyókúranapló!B56))","v":"00:00:00"},{"$f":"Fogyókúranapló!C56","v":0}]
[{"$f":"IF((Fogyókúranapló!C57=0)*(Fogyókúranapló!C56=0),TRUE)","v":true},{"$f":"IF(A36,0,IF(Fogyókúranapló!B57=0,Fogyókúranapló!B56+5,Fogyókúranapló!B57))","v":"00:00:00"},{"$f":"Fogyókúranapló!C57","v":0}]
[{"$f":"IF((Fogyókúranapló!C58=0)*(Fogyókúranapló!C57=0),TRUE)","v":true},{"$f":"IF(A37,0,IF(Fogyókúranapló!B58=0,Fogyókúranapló!B57+5,Fogyókúranapló!B58))","v":"00:00:00"},{"$f":"Fogyókúranapló!C58","v":0}]
[{"$f":"IF((Fogyókúranapló!C59=0)*(Fogyókúranapló!C58=0),TRUE)","v":true},{"$f":"IF(A38,0,IF(Fogyókúranapló!B59=0,Fogyókúranapló!B58+5,Fogyókúranapló!B59))","v":"00:00:00"},{"$f":"Fogyókúranapló!C59","v":0}]
[{"$f":"IF((Fogyókúranapló!C60=0)*(Fogyókúranapló!C59=0),TRUE)","v":true},{"$f":"IF(A39,0,IF(Fogyókúranapló!B60=0,Fogyókúranapló!B59+5,Fogyókúranapló!B60))","v":"00:00:00"},{"$f":"Fogyókúranapló!C60","v":0}]
[{"$f":"IF((Fogyókúranapló!C61=0)*(Fogyókúranapló!C60=0),TRUE)","v":true},{"$f":"IF(A40,0,IF(Fogyókúranapló!B61=0,Fogyókúranapló!B60+5,Fogyókúranapló!B61))","v":"00:00:00"},{"$f":"Fogyókúranapló!C61","v":0}]
[{"$f":"IF((Fogyókúranapló!C62=0)*(Fogyókúranapló!C61=0),TRUE)","v":true},{"$f":"IF(A41,0,IF(Fogyókúranapló!B62=0,Fogyókúranapló!B61+5,Fogyókúranapló!B62))","v":"00:00:00"},{"$f":"Fogyókúranapló!C62","v":0}]
[{"$f":"IF((Fogyókúranapló!C63=0)*(Fogyókúranapló!C62=0),TRUE)","v":true},{"$f":"IF(A42,0,IF(Fogyókúranapló!B63=0,Fogyókúranapló!B62+5,Fogyókúranapló!B63))","v":"00:00:00"},{"$f":"Fogyókúranapló!C63","v":0}]
[{"$f":"IF((Fogyókúranapló!C64=0)*(Fogyókúranapló!C63=0),TRUE)","v":true},{"$f":"IF(A43,0,IF(Fogyókúranapló!B64=0,Fogyókúranapló!B63+5,Fogyókúranapló!B64))","v":"00:00:00"},{"$f":"Fogyókúranapló!C64","v":0}]
[{"$f":"IF((Fogyókúranapló!C65=0)*(Fogyókúranapló!C64=0),TRUE)","v":true},{"$f":"IF(A44,0,IF(Fogyókúranapló!B65=0,Fogyókúranapló!B64+5,Fogyókúranapló!B65))","v":"00:00:00"},{"$f":"Fogyókúranapló!C65","v":0}]
[{"$f":"IF((Fogyókúranapló!C66=0)*(Fogyókúranapló!C65=0),TRUE)","v":true},{"$f":"IF(A45,0,IF(Fogyókúranapló!B66=0,Fogyókúranapló!B65+5,Fogyókúranapló!B66))","v":"00:00:00"},{"$f":"Fogyókúranapló!C66","v":0}]
[{"$f":"IF((Fogyókúranapló!C67=0)*(Fogyókúranapló!C66=0),TRUE)","v":true},{"$f":"IF(A46,0,IF(Fogyókúranapló!B67=0,Fogyókúranapló!B66+5,Fogyókúranapló!B67))","v":"00:00:00"},{"$f":"Fogyókúranapló!C67","v":0}]
[{"$f":"IF((Fogyókúranapló!C68=0)*(Fogyókúranapló!C67=0),TRUE)","v":true},{"$f":"IF(A47,0,IF(Fogyókúranapló!B68=0,Fogyókúranapló!B67+5,Fogyókúranapló!B68))","v":"00:00:00"},{"$f":"Fogyókúranapló!C68","v":0}]
[{"$f":"IF((Fogyókúranapló!C69=0)*(Fogyókúranapló!C68=0),TRUE)","v":true},{"$f":"IF(A48,0,IF(Fogyókúranapló!B69=0,Fogyókúranapló!B68+5,Fogyókúranapló!B69))","v":"00:00:00"},{"$f":"Fogyókúranapló!C69","v":0}]
[{"$f":"IF((Fogyókúranapló!C70=0)*(Fogyókúranapló!C69=0),TRUE)","v":true},{"$f":"IF(A49,0,IF(Fogyókúranapló!B70=0,Fogyókúranapló!B69+5,Fogyókúranapló!B70))","v":"00:00:00"},{"$f":"Fogyókúranapló!C70","v":0}]
[{"$f":"IF((Fogyókúranapló!C71=0)*(Fogyókúranapló!C70=0),TRUE)","v":true},{"$f":"IF(A50,0,IF(Fogyókúranapló!B71=0,Fogyókúranapló!B70+5,Fogyókúranapló!B71))","v":"00:00:00"},{"$f":"Fogyókúranapló!C71","v":0}]
[{"$f":"IF((Fogyókúranapló!C72=0)*(Fogyókúranapló!C71=0),TRUE)","v":true},{"$f":"IF(A51,0,IF(Fogyókúranapló!B72=0,Fogyókúranapló!B71+5,Fogyókúranapló!B72))","v":"00:00:00"},{"$f":"Fogyókúranapló!C72","v":0}]
[{"$f":"IF((Fogyókúranapló!C73=0)*(Fogyókúranapló!C72=0),TRUE)","v":true},{"$f":"IF(A52,0,IF(Fogyókúranapló!B73=0,Fogyókúranapló!B72+5,Fogyókúranapló!B73))","v":"00:00:00"},{"$f":"Fogyókúranapló!C73","v":0}]
[{"$f":"IF((Fogyókúranapló!C74=0)*(Fogyókúranapló!C73=0),TRUE)","v":true},{"$f":"IF(A53,0,IF(Fogyókúranapló!B74=0,Fogyókúranapló!B73+5,Fogyókúranapló!B74))","v":"00:00:00"},{"$f":"Fogyókúranapló!C74","v":0}]
[{"$f":"IF((Fogyókúranapló!C75=0)*(Fogyókúranapló!C74=0),TRUE)","v":true},{"$f":"IF(A54,0,IF(Fogyókúranapló!B75=0,Fogyókúranapló!B74+5,Fogyókúranapló!B75))","v":"00:00:00"},{"$f":"Fogyókúranapló!C75","v":0}]
[{"$f":"IF((Fogyókúranapló!C76=0)*(Fogyókúranapló!C75=0),TRUE)","v":true},{"$f":"IF(A55,0,IF(Fogyókúranapló!B76=0,Fogyókúranapló!B75+5,Fogyókúranapló!B76))","v":"00:00:00"},{"$f":"Fogyókúranapló!C76","v":0}]
[{"$f":"IF((Fogyókúranapló!C77=0)*(Fogyókúranapló!C76=0),TRUE)","v":true},{"$f":"IF(A56,0,IF(Fogyókúranapló!B77=0,Fogyókúranapló!B76+5,Fogyókúranapló!B77))","v":"00:00:00"},{"$f":"Fogyókúranapló!C77","v":0}]
[{"$f":"IF((Fogyókúranapló!C78=0)*(Fogyókúranapló!C77=0),TRUE)","v":true},{"$f":"IF(A57,0,IF(Fogyókúranapló!B78=0,Fogyókúranapló!B77+5,Fogyókúranapló!B78))","v":"00:00:00"},{"$f":"Fogyókúranapló!C78","v":0}]
[{"$f":"IF((Fogyókúranapló!C79=0)*(Fogyókúranapló!C78=0),TRUE)","v":true},{"$f":"IF(A58,0,IF(Fogyókúranapló!B79=0,Fogyókúranapló!B78+5,Fogyókúranapló!B79))","v":"00:00:00"},{"$f":"Fogyókúranapló!C79","v":0}]
[{"$f":"IF((Fogyókúranapló!C80=0)*(Fogyókúranapló!C79=0),TRUE)","v":true},{"$f":"IF(A59,0,IF(Fogyókúranapló!B80=0,Fogyókúranapló!B79+5,Fogyókúranapló!B80))","v":"00:00:00"},{"$f":"Fogyókúranapló!C80","v":0}]
[{"$f":"IF((Fogyókúranapló!C81=0)*(Fogyókúranapló!C80=0),TRUE)","v":true},{"$f":"IF(A60,0,IF(Fogyókúranapló!B81=0,Fogyókúranapló!B80+5,Fogyókúranapló!B81))","v":"00:00:00"},{"$f":"Fogyókúranapló!C81","v":0}]
[{"$f":"IF((Fogyókúranapló!C82=0)*(Fogyókúranapló!C81=0),TRUE)","v":true},{"$f":"IF(A61,0,IF(Fogyókúranapló!B82=0,Fogyókúranapló!B81+5,Fogyókúranapló!B82))","v":"00:00:00"},{"$f":"Fogyókúranapló!C82","v":0}]
[{"$f":"IF((Fogyókúranapló!C83=0)*(Fogyókúranapló!C82=0),TRUE)","v":true},{"$f":"IF(A62,0,IF(Fogyókúranapló!B83=0,Fogyókúranapló!B82+5,Fogyókúranapló!B83))","v":"00:00:00"},{"$f":"Fogyókúranapló!C83","v":0}]
[{"$f":"IF((Fogyókúranapló!C84=0)*(Fogyókúranapló!C83=0),TRUE)","v":true},{"$f":"IF(A63,0,IF(Fogyókúranapló!B84=0,Fogyókúranapló!B83+5,Fogyókúranapló!B84))","v":"00:00:00"},{"$f":"Fogyókúranapló!C84","v":0}]
[{"$f":"IF((Fogyókúranapló!C85=0)*(Fogyókúranapló!C84=0),TRUE)","v":true},{"$f":"IF(A64,0,IF(Fogyókúranapló!B85=0,Fogyókúranapló!B84+5,Fogyókúranapló!B85))","v":"00:00:00"},{"$f":"Fogyókúranapló!C85","v":0}]
[{"$f":"IF((Fogyókúranapló!C86=0)*(Fogyókúranapló!C85=0),TRUE)","v":true},{"$f":"IF(A65,0,IF(Fogyókúranapló!B86=0,Fogyókúranapló!B85+5,Fogyókúranapló!B86))","v":"00:00:00"},{"$f":"Fogyókúranapló!C86","v":0}]
[{"$f":"IF((Fogyókúranapló!C87=0)*(Fogyókúranapló!C86=0),TRUE)","v":true},{"$f":"IF(A66,0,IF(Fogyókúranapló!B87=0,Fogyókúranapló!B86+5,Fogyókúranapló!B87))","v":"00:00:00"},{"$f":"Fogyókúranapló!C87","v":0}]
[{"$f":"IF((Fogyókúranapló!C88=0)*(Fogyókúranapló!C87=0),TRUE)","v":true},{"$f":"IF(A67,0,IF(Fogyókúranapló!B88=0,Fogyókúranapló!B87+5,Fogyókúranapló!B88))","v":"00:00:00"},{"$f":"Fogyókúranapló!C88","v":0}]
[{"$f":"IF((Fogyókúranapló!C89=0)*(Fogyókúranapló!C88=0),TRUE)","v":true},{"$f":"IF(A68,0,IF(Fogyókúranapló!B89=0,Fogyókúranapló!B88+5,Fogyókúranapló!B89))","v":"00:00:00"},{"$f":"Fogyókúranapló!C89","v":0}]
[{"$f":"IF((Fogyókúranapló!C90=0)*(Fogyókúranapló!C89=0),TRUE)","v":true},{"$f":"IF(A69,0,IF(Fogyókúranapló!B90=0,Fogyókúranapló!B89+5,Fogyókúranapló!B90))","v":"00:00:00"},{"$f":"Fogyókúranapló!C90","v":0}]
[{"$f":"IF((Fogyókúranapló!C91=0)*(Fogyókúranapló!C90=0),TRUE)","v":true},{"$f":"IF(A70,0,IF(Fogyókúranapló!B91=0,Fogyókúranapló!B90+5,Fogyókúranapló!B91))","v":"00:00:00"},{"$f":"Fogyókúranapló!C91","v":0}]
[{"$f":"IF((Fogyókúranapló!C92=0)*(Fogyókúranapló!C91=0),TRUE)","v":true},{"$f":"IF(A71,0,IF(Fogyókúranapló!B92=0,Fogyókúranapló!B91+5,Fogyókúranapló!B92))","v":"00:00:00"},{"$f":"Fogyókúranapló!C92","v":0}]
[{"$f":"IF((Fogyókúranapló!C93=0)*(Fogyókúranapló!C92=0),TRUE)","v":true},{"$f":"IF(A72,0,IF(Fogyókúranapló!B93=0,Fogyókúranapló!B92+5,Fogyókúranapló!B93))","v":"00:00:00"},{"$f":"Fogyókúranapló!C93","v":0}]
[{"$f":"IF((Fogyókúranapló!C94=0)*(Fogyókúranapló!C93=0),TRUE)","v":true},{"$f":"IF(A73,0,IF(Fogyókúranapló!B94=0,Fogyókúranapló!B93+5,Fogyókúranapló!B94))","v":"00:00:00"},{"$f":"Fogyókúranapló!C94","v":0}]
[{"$f":"IF((Fogyókúranapló!C95=0)*(Fogyókúranapló!C94=0),TRUE)","v":true},{"$f":"IF(A74,0,IF(Fogyókúranapló!B95=0,Fogyókúranapló!B94+5,Fogyókúranapló!B95))","v":"00:00:00"},{"$f":"Fogyókúranapló!C95","v":0}]
[{"$f":"IF((Fogyókúranapló!C96=0)*(Fogyókúranapló!C95=0),TRUE)","v":true},{"$f":"IF(A75,0,IF(Fogyókúranapló!B96=0,Fogyókúranapló!B95+5,Fogyókúranapló!B96))","v":"00:00:00"},{"$f":"Fogyókúranapló!C96","v":0}]
[{"$f":"IF((Fogyókúranapló!C97=0)*(Fogyókúranapló!C96=0),TRUE)","v":true},{"$f":"IF(A76,0,IF(Fogyókúranapló!B97=0,Fogyókúranapló!B96+5,Fogyókúranapló!B97))","v":"00:00:00"},{"$f":"Fogyókúranapló!C97","v":0}]
[{"$f":"IF((Fogyókúranapló!C98=0)*(Fogyókúranapló!C97=0),TRUE)","v":true},{"$f":"IF(A77,0,IF(Fogyókúranapló!B98=0,Fogyókúranapló!B97+5,Fogyókúranapló!B98))","v":"00:00:00"},{"$f":"Fogyókúranapló!C98","v":0}]
[{"$f":"IF((Fogyókúranapló!C99=0)*(Fogyókúranapló!C98=0),TRUE)","v":true},{"$f":"IF(A78,0,IF(Fogyókúranapló!B99=0,Fogyókúranapló!B98+5,Fogyókúranapló!B99))","v":"00:00:00"},{"$f":"Fogyókúranapló!C99","v":0}]
[{"$f":"IF((Fogyókúranapló!C100=0)*(Fogyókúranapló!C99=0),TRUE)","v":true},{"$f":"IF(A79,0,IF(Fogyókúranapló!B100=0,Fogyókúranapló!B99+5,Fogyókúranapló!B100))","v":"00:00:00"},{"$f":"Fogyókúranapló!C100","v":0}]
[{"$f":"IF((Fogyókúranapló!C101=0)*(Fogyókúranapló!C100=0),TRUE)","v":true},{"$f":"IF(A80,0,IF(Fogyókúranapló!B101=0,Fogyókúranapló!B100+5,Fogyókúranapló!B101))","v":"00:00:00"},{"$f":"Fogyókúranapló!C101","v":0}]
[{"$f":"IF((Fogyókúranapló!C102=0)*(Fogyókúranapló!C101=0),TRUE)","v":true},{"$f":"IF(A81,0,IF(Fogyókúranapló!B102=0,Fogyókúranapló!B101+5,Fogyókúranapló!B102))","v":"00:00:00"},{"$f":"Fogyókúranapló!C102","v":0}]
[{"$f":"IF((Fogyókúranapló!C103=0)*(Fogyókúranapló!C102=0),TRUE)","v":true},{"$f":"IF(A82,0,IF(Fogyókúranapló!B103=0,Fogyókúranapló!B102+5,Fogyókúranapló!B103))","v":"00:00:00"},{"$f":"Fogyókúranapló!C103","v":0}]
[{"$f":"IF((Fogyókúranapló!C104=0)*(Fogyókúranapló!C103=0),TRUE)","v":true},{"$f":"IF(A83,0,IF(Fogyókúranapló!B104=0,Fogyókúranapló!B103+5,Fogyókúranapló!B104))","v":"00:00:00"},{"$f":"Fogyókúranapló!C104","v":0}]
[{"$f":"IF((Fogyókúranapló!C105=0)*(Fogyókúranapló!C104=0),TRUE)","v":true},{"$f":"IF(A84,0,IF(Fogyókúranapló!B105=0,Fogyókúranapló!B104+5,Fogyókúranapló!B105))","v":"00:00:00"},{"$f":"Fogyókúranapló!C105","v":0}]
[{"$f":"IF((Fogyókúranapló!C106=0)*(Fogyókúranapló!C105=0),TRUE)","v":true},{"$f":"IF(A85,0,IF(Fogyókúranapló!B106=0,Fogyókúranapló!B105+5,Fogyókúranapló!B106))","v":"00:00:00"},{"$f":"Fogyókúranapló!C106","v":0}]
[{"$f":"IF((Fogyókúranapló!C107=0)*(Fogyókúranapló!C106=0),TRUE)","v":true},{"$f":"IF(A86,0,IF(Fogyókúranapló!B107=0,Fogyókúranapló!B106+5,Fogyókúranapló!B107))","v":"00:00:00"},{"$f":"Fogyókúranapló!C107","v":0}]
[{"$f":"IF((Fogyókúranapló!C108=0)*(Fogyókúranapló!C107=0),TRUE)","v":true},{"$f":"IF(A87,0,IF(Fogyókúranapló!B108=0,Fogyókúranapló!B107+5,Fogyókúranapló!B108))","v":"00:00:00"},{"$f":"Fogyókúranapló!C108","v":0}]
[{"$f":"IF((Fogyókúranapló!C109=0)*(Fogyókúranapló!C108=0),TRUE)","v":true},{"$f":"IF(A88,0,IF(Fogyókúranapló!B109=0,Fogyókúranapló!B108+5,Fogyókúranapló!B109))","v":"00:00:00"},{"$f":"Fogyókúranapló!C109","v":0}]
[{"$f":"IF((Fogyókúranapló!C110=0)*(Fogyókúranapló!C109=0),TRUE)","v":true},{"$f":"IF(A89,0,IF(Fogyókúranapló!B110=0,Fogyókúranapló!B109+5,Fogyókúranapló!B110))","v":"00:00:00"},{"$f":"Fogyókúranapló!C110","v":0}]
[{"$f":"IF((Fogyókúranapló!C111=0)*(Fogyókúranapló!C110=0),TRUE)","v":true},{"$f":"IF(A90,0,IF(Fogyókúranapló!B111=0,Fogyókúranapló!B110+5,Fogyókúranapló!B111))","v":"00:00:00"},{"$f":"Fogyókúranapló!C111","v":0}]
[{"$f":"IF((Fogyókúranapló!C112=0)*(Fogyókúranapló!C111=0),TRUE)","v":true},{"$f":"IF(A91,0,IF(Fogyókúranapló!B112=0,Fogyókúranapló!B111+5,Fogyókúranapló!B112))","v":"00:00:00"},{"$f":"Fogyókúranapló!C112","v":0}]
[{"$f":"IF((Fogyókúranapló!C113=0)*(Fogyókúranapló!C112=0),TRUE)","v":true},{"$f":"IF(A92,0,IF(Fogyókúranapló!B113=0,Fogyókúranapló!B112+5,Fogyókúranapló!B113))","v":"00:00:00"},{"$f":"Fogyókúranapló!C113","v":0}]
[{"$f":"IF((Fogyókúranapló!C114=0)*(Fogyókúranapló!C113=0),TRUE)","v":true},{"$f":"IF(A93,0,IF(Fogyókúranapló!B114=0,Fogyókúranapló!B113+5,Fogyókúranapló!B114))","v":"00:00:00"},{"$f":"Fogyókúranapló!C114","v":0}]
[{"$f":"IF((Fogyókúranapló!C115=0)*(Fogyókúranapló!C114=0),TRUE)","v":true},{"$f":"IF(A94,0,IF(Fogyókúranapló!B115=0,Fogyókúranapló!B114+5,Fogyókúranapló!B115))","v":"00:00:00"},{"$f":"Fogyókúranapló!C115","v":0}]
[{"$f":"IF((Fogyókúranapló!C116=0)*(Fogyókúranapló!C115=0),TRUE)","v":true},{"$f":"IF(A95,0,IF(Fogyókúranapló!B116=0,Fogyókúranapló!B115+5,Fogyókúranapló!B116))","v":"00:00:00"},{"$f":"Fogyókúranapló!C116","v":0}]
[{"$f":"IF((Fogyókúranapló!C117=0)*(Fogyókúranapló!C116=0),TRUE)","v":true},{"$f":"IF(A96,0,IF(Fogyókúranapló!B117=0,Fogyókúranapló!B116+5,Fogyókúranapló!B117))","v":"00:00:00"},{"$f":"Fogyókúranapló!C117","v":0}]
[{"$f":"IF((Fogyókúranapló!C118=0)*(Fogyókúranapló!C117=0),TRUE)","v":true},{"$f":"IF(A97,0,IF(Fogyókúranapló!B118=0,Fogyókúranapló!B117+5,Fogyókúranapló!B118))","v":"00:00:00"},{"$f":"Fogyókúranapló!C118","v":0}]
[{"$f":"IF((Fogyókúranapló!C119=0)*(Fogyókúranapló!C118=0),TRUE)","v":true},{"$f":"IF(A98,0,IF(Fogyókúranapló!B119=0,Fogyókúranapló!B118+5,Fogyókúranapló!B119))","v":"00:00:00"},{"$f":"Fogyókúranapló!C119","v":0}]
[{"$f":"IF((Fogyókúranapló!C120=0)*(Fogyókúranapló!C119=0),TRUE)","v":true},{"$f":"IF(A99,0,IF(Fogyókúranapló!B120=0,Fogyókúranapló!B119+5,Fogyókúranapló!B120))","v":"00:00:00"},{"$f":"Fogyókúranapló!C120","v":0}]
[{"$f":"IF((Fogyókúranapló!C121=0)*(Fogyókúranapló!C120=0),TRUE)","v":true},{"$f":"IF(A100,0,IF(Fogyókúranapló!B121=0,Fogyókúranapló!B120+5,Fogyókúranapló!B121))","v":"00:00:00"},{"$f":"Fogyókúranapló!C121","v":0}]
[{"$f":"IF((Fogyókúranapló!C122=0)*(Fogyókúranapló!C121=0),TRUE)","v":true},{"$f":"IF(A101,0,IF(Fogyókúranapló!B122=0,Fogyókúranapló!B121+5,Fogyókúranapló!B122))","v":"00:00:00"},{"$f":"Fogyókúranapló!C122","v":0}]
[{"$f":"IF((Fogyókúranapló!C123=0)*(Fogyókúranapló!C122=0),TRUE)","v":true},{"$f":"IF(A102,0,IF(Fogyókúranapló!B123=0,Fogyókúranapló!B122+5,Fogyókúranapló!B123))","v":"00:00:00"},{"$f":"Fogyókúranapló!C123","v":0}]
[{"$f":"IF((Fogyókúranapló!C124=0)*(Fogyókúranapló!C123=0),TRUE)","v":true},{"$f":"IF(A103,0,IF(Fogyókúranapló!B124=0,Fogyókúranapló!B123+5,Fogyókúranapló!B124))","v":"00:00:00"},{"$f":"Fogyókúranapló!C124","v":0}]
[{"$f":"IF((Fogyókúranapló!C125=0)*(Fogyókúranapló!C124=0),TRUE)","v":true},{"$f":"IF(A104,0,IF(Fogyókúranapló!B125=0,Fogyókúranapló!B124+5,Fogyókúranapló!B125))","v":"00:00:00"},{"$f":"Fogyókúranapló!C125","v":0}]
[{"$f":"IF((Fogyókúranapló!C126=0)*(Fogyókúranapló!C125=0),TRUE)","v":true},{"$f":"IF(A105,0,IF(Fogyókúranapló!B126=0,Fogyókúranapló!B125+5,Fogyókúranapló!B126))","v":"00:00:00"},{"$f":"Fogyókúranapló!C126","v":0}]
[{"$f":"IF((Fogyókúranapló!C127=0)*(Fogyókúranapló!C126=0),TRUE)","v":true},{"$f":"IF(A106,0,IF(Fogyókúranapló!B127=0,Fogyókúranapló!B126+5,Fogyókúranapló!B127))","v":"00:00:00"},{"$f":"Fogyókúranapló!C127","v":0}]
[{"$f":"IF((Fogyókúranapló!C128=0)*(Fogyókúranapló!C127=0),TRUE)","v":true},{"$f":"IF(A107,0,IF(Fogyókúranapló!B128=0,Fogyókúranapló!B127+5,Fogyókúranapló!B128))","v":"00:00:00"},{"$f":"Fogyókúranapló!C128","v":0}]
[{"$f":"IF((Fogyókúranapló!C129=0)*(Fogyókúranapló!C128=0),TRUE)","v":true},{"$f":"IF(A108,0,IF(Fogyókúranapló!B129=0,Fogyókúranapló!B128+5,Fogyókúranapló!B129))","v":"00:00:00"},{"$f":"Fogyókúranapló!C129","v":0}]